[Event "*** Titled Tuesday Blitz"]
[Site "Chess.com"]
[Date "2019.03.05"]
[Round "4"]
[White "Alexey_Potapov"]
[Black "Hikaru"]
[Result "1-0"]
[WhiteElo "2736"]
[BlackElo "3129"]
[TimeControl "180+2"]
[EndTime "13:56:43 PST"]
[Termination "Alexey_Potapov won by resignation"]

1. c4 {[%clk 0:03:01.9]} 1... f5 {[%clk 0:02:59.2]} 2. Nc3 {[%clk 0:03:02.7]}
2... Nf6 {[%clk 0:02:57.4]} 3. g3 {[%clk 0:03:03.9]} 3... g6 {[%clk 0:02:58.5]}
4. Bg2 {[%clk 0:03:05]} 4... Bg7 {[%clk 0:03:00.4]} 5. Nf3 {[%clk 0:03:03.6]}
5... d6 {[%clk 0:03:00.8]} 6. d4 {[%clk 0:03:00.2]} 6... O-O {[%clk 0:03:01.3]}
7. O-O {[%clk 0:03:00.9]} 7... Nc6 {[%clk 0:02:58.6]} 8. d5 {[%clk 0:02:59.2]}
8... Ne5 {[%clk 0:02:59.1]} 9. Nxe5 {[%clk 0:02:57.1]} 9... dxe5 {[%clk
0:03:01]} 10. e4 {[%clk 0:02:53.3]} 10... e6 {[%clk 0:02:38.5]} 11. Qb3 {[%clk
0:02:35.2]} 11... exd5 {[%clk 0:02:32.7]} 12. cxd5 {[%clk 0:02:31.9]} 12... Kh8
{[%clk 0:02:32.2]} 13. Be3 {[%clk 0:02:21.5]} 13... f4 {[%clk 0:02:24.6]} 14.
Bc5 {[%clk 0:02:19.9]} 14... Re8 {[%clk 0:02:23.6]} 15. f3 {[%clk 0:02:13.6]}
15... fxg3 {[%clk 0:02:21.3]} 16. hxg3 {[%clk 0:02:14.3]} 16... Nh5 {[%clk
0:02:22.7]} 17. Kh2 {[%clk 0:02:08.2]} 17... c6 {[%clk 0:02:00.6]} 18. Rad1
{[%clk 0:02:05.2]} 18... Qg5 {[%clk 0:02:00.9]} 19. Bf2 {[%clk 0:02:02.9]} 19...
Qh6 {[%clk 0:02:00]} 20. Kg1 {[%clk 0:02:01.6]} 20... Qg5 {[%clk 0:02:01.5]} 21.
Kh2 {[%clk 0:02:02.7]} 21... cxd5 {[%clk 0:01:59.6]} 22. Nxd5 {[%clk 0:01:59.7]}
22... Be6 {[%clk 0:02:01]} 23. Qe3 {[%clk 0:01:56.2]} 23... Qxe3 {[%clk
0:01:58.9]} 24. Bxe3 {[%clk 0:01:54.5]} 24... Bxd5 {[%clk 0:01:50.4]} 25. exd5
{[%clk 0:01:52]} 25... b6 {[%clk 0:01:48.6]} 26. Rd2 {[%clk 0:01:52.2]} 26...
Rad8 {[%clk 0:01:48.7]} 27. Rfd1 {[%clk 0:01:52.8]} 27... Rd6 {[%clk 0:01:48.7]}
28. Bh3 {[%clk 0:01:49.2]} 28... e4 {[%clk 0:01:41.5]} 29. f4 {[%clk 0:01:47.2]}
29... Nf6 {[%clk 0:01:43]} 30. Be6 {[%clk 0:01:41.6]} 30... h5 {[%clk
0:01:36.3]} 31. Kh3 {[%clk 0:01:37.1]} 31... Kh7 {[%clk 0:01:36.8]} 32. Rc1
{[%clk 0:01:34.1]} 32... Red8 {[%clk 0:01:32.1]} 33. Rc6 {[%clk 0:01:28.7]}
33... Ne8 {[%clk 0:01:27.2]} 34. b4 {[%clk 0:01:19.1]} 34... Bf6 {[%clk
0:01:19.4]} 35. b5 {[%clk 0:01:15.2]} 35... Ng7 {[%clk 0:01:20.5]} 36. Rc7
{[%clk 0:01:10.9]} 36... Kh8 {[%clk 0:01:17.5]} 37. Rdc2 {[%clk 0:01:07.2]}
37... Nxe6 {[%clk 0:01:08.4]} 38. dxe6 {[%clk 0:01:08.5]} 38... Rxe6 {[%clk
0:01:10.3]} 39. Rxa7 {[%clk 0:01:09.6]} 39... Kg8 {[%clk 0:00:58.4]} 40. Rc6
{[%clk 0:00:59.6]} 40... Rde8 {[%clk 0:00:50.1]} 41. Rb7 {[%clk 0:00:53.8]}
41... Bd8 {[%clk 0:00:51.4]} 42. Kg2 {[%clk 0:00:50.9]} 42... Kf8 {[%clk
0:00:45.2]} 43. a4 {[%clk 0:00:47.2]} 43... R6e7 {[%clk 0:00:46.7]} 44. Rxe7
{[%clk 0:00:45.6]} 44... Rxe7 {[%clk 0:00:48.6]} 45. Bxb6 {[%clk 0:00:45.4]}
45... Bxb6 {[%clk 0:00:49.8]} 46. Rxb6 {[%clk 0:00:47.3]} 46... Rd7 {[%clk
0:00:49.4]} 47. Kf2 {[%clk 0:00:48.4]} 47... Rd3 {[%clk 0:00:47.7]} 48. Rxg6
{[%clk 0:00:47.3]} 48... Ra3 {[%clk 0:00:47.7]} 49. Ra6 {[%clk 0:00:47]} 49...
Ke7 {[%clk 0:00:48.5]} 50. a5 {[%clk 0:00:48.1]} 50... Rb3 {[%clk 0:00:49.1]}
51. b6 {[%clk 0:00:48.9]} 51... Ke6 {[%clk 0:00:50.8]} 52. Ra8 {[%clk
0:00:49.9]} 52... Kf5 {[%clk 0:00:50.2]} 53. Rf8+ {[%clk 0:00:50.5]} 53... Kg4
{[%clk 0:00:51.4]} 54. Rg8+ {[%clk 0:00:51.9]} 54... Kh3 {[%clk 0:00:52.7]} 55.
Rg7 {[%clk 0:00:51.9]} 55... e3+ {[%clk 0:00:43.2]} 56. Ke2 {[%clk 0:00:52.8]}
56... Kg2 {[%clk 0:00:44.1]} 57. b7 {[%clk 0:00:53.7]} 1-0

[Event "*** Titled Tuesday Blitz"]
[Site "Chess.com"]
[Date "2019.03.05"]
[Round "4"]
[White "BlackBoarder"]
[Black "DawidCzerw"]
[Result "1-0"]
[WhiteElo "2540"]
[BlackElo "2250"]
[TimeControl "180+2"]
[EndTime "13:56:45 PST"]
[Termination "BlackBoarder won by checkmate"]

1. e4 {[%clk 0:02:55.6]} 1... c5 {[%clk 0:03:00.7]} 2. Nf3 {[%clk 0:02:54.3]}
2... g6 {[%clk 0:03:01]} 3. c3 {[%clk 0:02:54.1]} 3... Bg7 {[%clk 0:03:01.1]} 4.
d4 {[%clk 0:02:54.9]} 4... cxd4 {[%clk 0:03:03]} 5. cxd4 {[%clk 0:02:56.8]} 5...
d5 {[%clk 0:03:04.4]} 6. exd5 {[%clk 0:02:58.3]} 6... Nf6 {[%clk 0:03:05.1]} 7.
Nc3 {[%clk 0:02:55.6]} 7... O-O {[%clk 0:03:04.1]} 8. Bc4 {[%clk 0:02:55.9]}
8... Nbd7 {[%clk 0:02:59.4]} 9. O-O {[%clk 0:02:56.4]} 9... Nb6 {[%clk
0:02:59.5]} 10. Bb3 {[%clk 0:02:57.6]} 10... Nbxd5 {[%clk 0:03:00.6]} 11. Re1
{[%clk 0:02:59]} 11... e6 {[%clk 0:02:58]} 12. Bg5 {[%clk 0:02:58.8]} 12... b6
{[%clk 0:02:48.5]} 13. Nxd5 {[%clk 0:02:58.3]} 13... exd5 {[%clk 0:02:47.3]} 14.
Ne5 {[%clk 0:02:59.1]} 14... h6 {[%clk 0:02:36.6]} 15. Nc6 {[%clk 0:02:31.5]}
15... Qd6 {[%clk 0:02:17.3]} 16. Ne7+ {[%clk 0:02:31]} 16... Kh7 {[%clk
0:02:16.8]} 17. Bxf6 {[%clk 0:02:25.4]} 17... Bxf6 {[%clk 0:02:12.5]} 18. Nxd5
{[%clk 0:02:25.9]} 18... Bg7 {[%clk 0:02:06.4]} 19. Ne3 {[%clk 0:01:51.5]} 19...
Qxd4 {[%clk 0:01:55.6]} 20. Qf3 {[%clk 0:01:45.9]} 20... Ba6 {[%clk 0:01:28.5]}
21. Rad1 {[%clk 0:01:23.5]} 21... Qxb2 {[%clk 0:01:24.7]} 22. Bxf7 {[%clk
0:01:10.9]} 22... Qf6 {[%clk 0:00:58.3]} 23. Qxf6 {[%clk 0:00:55.5]} 23... Bxf6
{[%clk 0:01:00.2]} 24. Bb3 {[%clk 0:00:39.6]} 24... Rad8 {[%clk 0:00:53.6]} 25.
Nd5 {[%clk 0:00:39.2]} 25... Bg7 {[%clk 0:00:30.2]} 26. Nc7 {[%clk 0:00:39.7]}
26... Bc8 {[%clk 0:00:28]} 27. g3 {[%clk 0:00:25.4]} 27... Bg4 {[%clk
0:00:26.5]} 28. Rxd8 {[%clk 0:00:18.4]} 28... Rxd8 {[%clk 0:00:28.4]} 29. Nd5
{[%clk 0:00:11.5]} 29... Bf3 {[%clk 0:00:25.3]} 30. Nf4 {[%clk 0:00:11.9]} 30...
Rd2 {[%clk 0:00:19.6]} 31. Bf7 {[%clk 0:00:11.9]} 31... g5 {[%clk 0:00:19.3]}
32. Bg6+ {[%clk 0:00:13]} 32... Kg8 {[%clk 0:00:19.5]} 33. Nd3 {[%clk 0:00:04]}
33... Bd4 {[%clk 0:00:18.3]} 34. h4 {[%clk 0:00:03.6]} 34... Kg7 {[%clk
0:00:18.4]} 35. h5 {[%clk 0:00:04.5]} 35... Be2 {[%clk 0:00:17.1]} 36. Nb4
{[%clk 0:00:02.5]} 36... Bb5 {[%clk 0:00:14.6]} 37. Re7+ {[%clk 0:00:03.4]}
37... Kf6 {[%clk 0:00:15]} 38. Nd5# {[%clk 0:00:04.4]} 1-0

[Event "*** Titled Tuesday Blitz"]
[Site "Chess.com"]
[Date "2019.03.05"]
[Round "4"]
[White "tteshan"]
[Black "Ibraev_Vasilj"]
[Result "0-1"]
[WhiteElo "2202"]
[BlackElo "2161"]
[TimeControl "180+2"]
[EndTime "13:56:55 PST"]
[Termination "Ibraev_Vasilj won by resignation"]

1. d4 {[%clk 0:03:01.9]} 1... Nf6 {[%clk 0:02:58.6]} 2. c4 {[%clk 0:02:56.4]}
2... e6 {[%clk 0:02:55.1]} 3. Nc3 {[%clk 0:02:51.5]} 3... c5 {[%clk 0:02:55.3]}
4. d5 {[%clk 0:02:46.7]} 4... exd5 {[%clk 0:02:55.4]} 5. cxd5 {[%clk 0:02:48.6]}
5... d6 {[%clk 0:02:56.3]} 6. e4 {[%clk 0:02:48.3]} 6... g6 {[%clk 0:02:57.3]}
7. f4 {[%clk 0:02:45.7]} 7... Bg7 {[%clk 0:02:57.5]} 8. Bb5+ {[%clk 0:02:45.3]}
8... Nfd7 {[%clk 0:02:56.9]} 9. Nf3 {[%clk 0:02:45.6]} 9... O-O {[%clk
0:02:57.2]} 10. O-O {[%clk 0:02:43.4]} 10... a6 {[%clk 0:02:57.2]} 11. Bd3
{[%clk 0:02:41.3]} 11... b5 {[%clk 0:02:51.5]} 12. Be3 {[%clk 0:02:35.4]} 12...
Re8 {[%clk 0:02:50.3]} 13. Qc2 {[%clk 0:02:32.2]} 13... Nb6 {[%clk 0:02:46.7]}
14. Rfe1 {[%clk 0:02:23.5]} 14... Bg4 {[%clk 0:02:40.5]} 15. Nd2 {[%clk
0:02:13.8]} 15... Bc8 {[%clk 0:02:29]} 16. a4 {[%clk 0:02:08]} 16... c4 {[%clk
0:02:24.6]} 17. Bf1 {[%clk 0:02:02.4]} 17... Bd7 {[%clk 0:02:09.6]} 18. axb5
{[%clk 0:01:55.5]} 18... axb5 {[%clk 0:02:08.1]} 19. Kh1 {[%clk 0:01:39.8]}
19... Na6 {[%clk 0:02:04.2]} 20. Qd1 {[%clk 0:01:25.3]} 20... Nb4 {[%clk
0:02:01.7]} 21. Rxa8 {[%clk 0:00:41.6]} 21... Nxa8 {[%clk 0:02:01.3]} 22. Qb1
{[%clk 0:00:37.5]} 22... Nb6 {[%clk 0:01:44]} 23. Bg1 {[%clk 0:00:35.2]} 23...
Qc7 {[%clk 0:01:40.4]} 24. Nf3 {[%clk 0:00:30.1]} 24... f5 {[%clk 0:01:21.4]}
25. exf5 {[%clk 0:00:20.1]} 25... Rxe1 {[%clk 0:01:17.5]} 26. Qxe1 {[%clk
0:00:22]} 26... gxf5 {[%clk 0:01:16.4]} 27. Qe7 {[%clk 0:00:21.8]} 27... N4xd5
{[%clk 0:01:07.9]} 28. Bxb6 {[%clk 0:00:20.8]} 28... Nxb6 {[%clk 0:00:52.1]} 29.
Ng5 {[%clk 0:00:20.3]} 29... Qc8 {[%clk 0:00:43.8]} 30. Qf7+ {[%clk 0:00:21.1]}
30... Kh8 {[%clk 0:00:43.6]} 31. Qh5 {[%clk 0:00:21.5]} 31... h6 {[%clk
0:00:41]} 32. Nf7+ {[%clk 0:00:22.7]} 32... Kh7 {[%clk 0:00:40.2]} 33. Ng5+
{[%clk 0:00:22.3]} 33... Kg8 {[%clk 0:00:37.9]} 34. Qf7+ {[%clk 0:00:22.5]}
34... Kh8 {[%clk 0:00:37.6]} 35. Nf3 {[%clk 0:00:21.6]} 35... Qe8 {[%clk
0:00:36.2]} 36. Qxe8+ {[%clk 0:00:15.4]} 36... Bxe8 {[%clk 0:00:36.8]} 37. Kg1
{[%clk 0:00:16.6]} 37... Bc6 {[%clk 0:00:36]} 38. Nd2 {[%clk 0:00:16.7]} 38...
Nd5 {[%clk 0:00:35.6]} 39. Nxd5 {[%clk 0:00:17]} 39... Bxd5 {[%clk 0:00:36.1]}
40. b3 {[%clk 0:00:18.2]} 40... c3 {[%clk 0:00:33.2]} 41. Bxb5 {[%clk
0:00:15.7]} 41... cxd2 {[%clk 0:00:32.4]} 42. Be2 {[%clk 0:00:16.8]} 42... Bxb3
{[%clk 0:00:33.2]} 43. Kf2 {[%clk 0:00:16.8]} 0-1

[Event "*** Titled Tuesday Blitz"]
[Site "Chess.com"]
[Date "2019.03.05"]
[Round "4"]
[White "tomozupan"]
[Black "Orest_Vovk"]
[Result "1-0"]
[WhiteElo "2223"]
[BlackElo "2142"]
[TimeControl "180+2"]
[EndTime "13:56:57 PST"]
[Termination "tomozupan won by resignation"]

1. d4 {[%clk 0:03:01.9]} 1... h6 {[%clk 0:02:58.8]} 2. e4 {[%clk 0:03:01.2]}
2... g5 {[%clk 0:03:00.1]} 3. h4 {[%clk 0:02:59.4]} 3... g4 {[%clk 0:03:00.2]}
4. Qxg4 {[%clk 0:02:55.5]} 4... d5 {[%clk 0:03:01.3]} 5. Qf3 {[%clk 0:02:49.1]}
5... dxe4 {[%clk 0:02:59.5]} 6. Qxe4 {[%clk 0:02:49.9]} 6... Nf6 {[%clk
0:02:57.8]} 7. Qd3 {[%clk 0:02:48.9]} 7... Nc6 {[%clk 0:02:58.5]} 8. c3 {[%clk
0:02:39.8]} 8... Qd5 {[%clk 0:02:58.2]} 9. Bf4 {[%clk 0:02:24.2]} 9... Bf5
{[%clk 0:02:55.7]} 10. Qe3 {[%clk 0:02:11.4]} 10... O-O-O {[%clk 0:02:47.7]} 11.
Nd2 {[%clk 0:02:06.6]} 11... e5 {[%clk 0:02:42.3]} 12. dxe5 {[%clk 0:01:57.5]}
12... Nxe5 {[%clk 0:02:42.1]} 13. Bxe5 {[%clk 0:01:53.1]} 13... Ng4 {[%clk
0:02:41.2]} 14. Bc4 {[%clk 0:01:39.5]} 14... Nxe3 {[%clk 0:02:35.9]} 15. Bxd5
{[%clk 0:01:39.1]} 15... Nc2+ {[%clk 0:02:36]} 16. Ke2 {[%clk 0:01:32.7]} 16...
Rxd5 {[%clk 0:02:37.9]} 17. Bxh8 {[%clk 0:01:32.7]} 17... Nxa1 {[%clk
0:02:38.1]} 18. Ngf3 {[%clk 0:01:27.8]} 18... Bd3+ {[%clk 0:02:26.8]} 19. Kd1
{[%clk 0:01:20.2]} 19... Ra5 {[%clk 0:02:17.3]} 20. Re1 {[%clk 0:01:00]} 20...
Bd6 {[%clk 0:02:05.9]} 21. a3 {[%clk 0:00:50]} 21... Rb5 {[%clk 0:02:05.1]} 22.
c4 {[%clk 0:00:45.3]} 22... Rb6 {[%clk 0:01:41.2]} 23. Re3 {[%clk 0:00:35.2]}
23... Bh7 {[%clk 0:01:24.5]} 24. Bd4 {[%clk 0:00:33.9]} 24... c5 {[%clk
0:01:18]} 25. Bc3 {[%clk 0:00:27.9]} 25... Nb3 {[%clk 0:01:09.2]} 26. Nxb3
{[%clk 0:00:27.3]} 26... Rxb3 {[%clk 0:01:11.1]} 27. Ne5 {[%clk 0:00:26.9]}
27... f6 {[%clk 0:00:56.2]} 28. Nf7 {[%clk 0:00:21.5]} 28... Rb6 {[%clk
0:00:53]} 29. Re8+ {[%clk 0:00:16.3]} 29... Kc7 {[%clk 0:00:42.5]} 30. Rh8
{[%clk 0:00:16.9]} 30... Bg6 {[%clk 0:00:33.2]} 31. Rxh6 {[%clk 0:00:17.2]}
31... Bxf7 {[%clk 0:00:32.7]} 32. Rh7 {[%clk 0:00:18.4]} 32... Be7 {[%clk
0:00:29.7]} 33. Rxf7 {[%clk 0:00:18.9]} 33... Kd7 {[%clk 0:00:30.4]} 34. h5
{[%clk 0:00:19.7]} 34... Ke6 {[%clk 0:00:30.7]} 35. Rg7 {[%clk 0:00:20.7]} 35...
Rd6+ {[%clk 0:00:31.2]} 36. Ke2 {[%clk 0:00:21.3]} 36... Rd8 {[%clk 0:00:31.3]}
37. h6 {[%clk 0:00:22.2]} 37... Rh8 {[%clk 0:00:30.9]} 38. h7 {[%clk 0:00:23.5]}
38... a6 {[%clk 0:00:28.2]} 39. g4 {[%clk 0:00:23.9]} 39... b5 {[%clk
0:00:28.9]} 40. f4 {[%clk 0:00:24.7]} 40... b4 {[%clk 0:00:23.3]} 41. axb4
{[%clk 0:00:24.9]} 41... cxb4 {[%clk 0:00:25.2]} 42. Bd4 {[%clk 0:00:25.9]}
42... Bf8 {[%clk 0:00:18.7]} 43. Rb7 {[%clk 0:00:21.6]} 43... Bd6 {[%clk
0:00:18.6]} 44. g5 {[%clk 0:00:21.5]} 44... fxg5 {[%clk 0:00:16.6]} 45. Bxh8
{[%clk 0:00:21.5]} 1-0

[Event "*** Titled Tuesday Blitz"]
[Site "Chess.com"]
[Date "2019.03.05"]
[Round "4"]
[White "kingmonkey2006"]
[Black "1stSecond"]
[Result "0-1"]
[WhiteElo "2531"]
[BlackElo "2747"]
[TimeControl "180+2"]
[EndTime "13:57:00 PST"]
[Termination "1stSecond won by checkmate"]

1. e4 {[%clk 0:03:01.7]} 1... e5 {[%clk 0:03:00.7]} 2. Nf3 {[%clk 0:03:02.2]}
2... Nc6 {[%clk 0:03:02]} 3. Bb5 {[%clk 0:03:02.8]} 3... a6 {[%clk 0:03:02.3]}
4. Ba4 {[%clk 0:03:03.5]} 4... Nf6 {[%clk 0:03:03.3]} 5. O-O {[%clk 0:03:04.2]}
5... Be7 {[%clk 0:02:58.9]} 6. d3 {[%clk 0:03:03.8]} 6... b5 {[%clk 0:02:54.9]}
7. Bb3 {[%clk 0:03:04.1]} 7... d6 {[%clk 0:02:53.9]} 8. a4 {[%clk 0:03:04.3]}
8... b4 {[%clk 0:02:43.8]} 9. a5 {[%clk 0:03:04.1]} 9... Rb8 {[%clk 0:02:41.3]}
10. Nbd2 {[%clk 0:03:03.9]} 10... O-O {[%clk 0:02:35.9]} 11. Nc4 {[%clk
0:03:04.5]} 11... Bg4 {[%clk 0:02:27.7]} 12. Be3 {[%clk 0:03:00.5]} 12... d5
{[%clk 0:02:18]} 13. exd5 {[%clk 0:02:56]} 13... Nxd5 {[%clk 0:02:19.9]} 14. Ba4
{[%clk 0:02:56]} 14... Bd7 {[%clk 0:01:51.3]} 15. Ncxe5 {[%clk 0:02:43]} 15...
Nxe5 {[%clk 0:01:51.6]} 16. Nxe5 {[%clk 0:02:44.9]} 16... Bxa4 {[%clk
0:01:52.8]} 17. Rxa4 {[%clk 0:02:46]} 17... Qd6 {[%clk 0:01:52.7]} 18. Nc4
{[%clk 0:02:46.2]} 18... Qe6 {[%clk 0:01:45.8]} 19. Qf3 {[%clk 0:02:36.6]} 19...
Bf6 {[%clk 0:01:39.6]} 20. Raa1 {[%clk 0:02:33.7]} 20... Rfd8 {[%clk 0:01:36]}
21. Rae1 {[%clk 0:02:33.7]} 21... Qd7 {[%clk 0:01:23.2]} 22. Ba7 {[%clk
0:02:28.9]} 22... Rb5 {[%clk 0:01:22.5]} 23. Be3 {[%clk 0:02:17.4]} 23... h5
{[%clk 0:01:03.6]} 24. Bd2 {[%clk 0:00:49.3]} 24... b3 {[%clk 0:00:59.4]} 25. c3
{[%clk 0:00:49.9]} 25... Ne7 {[%clk 0:00:56.7]} 26. d4 {[%clk 0:00:46.3]} 26...
Nc6 {[%clk 0:00:56.6]} 27. Qd1 {[%clk 0:00:42.7]} 27... Qd5 {[%clk 0:00:56.2]}
28. Ne3 {[%clk 0:00:43]} 28... Qd7 {[%clk 0:00:54.9]} 29. Nc4 {[%clk 0:00:42.2]}
29... Rdb8 {[%clk 0:00:53.3]} 30. Re3 {[%clk 0:00:32.9]} 30... Nxa5 {[%clk
0:00:52.2]} 31. Ne5 {[%clk 0:00:31.3]} 31... Bxe5 {[%clk 0:00:52.6]} 32. dxe5
{[%clk 0:00:29.5]} 32... Rd5 {[%clk 0:00:53.8]} 33. Qxh5 {[%clk 0:00:31]} 33...
Rxd2 {[%clk 0:00:40.1]} 34. Rh3 {[%clk 0:00:32.3]} 34... Qxh3 {[%clk 0:00:41.7]}
35. Qxh3 {[%clk 0:00:33.4]} 35... Rxb2 {[%clk 0:00:43.3]} 36. e6 {[%clk
0:00:34.5]} 36... f6 {[%clk 0:00:24]} 37. Qh5 {[%clk 0:00:33.8]} 37... Nc6
{[%clk 0:00:21.4]} 38. Qc5 {[%clk 0:00:19.8]} 38... Rb6 {[%clk 0:00:15.3]} 39.
e7 {[%clk 0:00:20.2]} 39... Kf7 {[%clk 0:00:16.5]} 40. Re1 {[%clk 0:00:21.3]}
40... Ne5 {[%clk 0:00:13.5]} 41. Qxc7 {[%clk 0:00:22.8]} 41... Re6 {[%clk
0:00:14.8]} 42. f4 {[%clk 0:00:23.4]} 42... Nf3+ {[%clk 0:00:16.1]} 43. gxf3
{[%clk 0:00:22.7]} 43... Rxe1# {[%clk 0:00:18]} 0-1

[Event "*** Titled Tuesday Blitz"]
[Site "Chess.com"]
[Date "2019.03.05"]
[Round "4"]
[White "Alexander_Moskalenko"]
[Black "chessking2151"]
[Result "1/2-1/2"]
[WhiteElo "2750"]
[BlackElo "2601"]
[TimeControl "180+2"]
[EndTime "13:57:03 PST"]
[Termination "Game drawn - insufficient material"]

1. c4 {[%clk 0:02:57.6]} 1... Nf6 {[%clk 0:02:58.6]} 2. Nc3 {[%clk 0:02:58.3]}
2... e5 {[%clk 0:02:58.2]} 3. Nf3 {[%clk 0:02:58.7]} 3... Nc6 {[%clk 0:02:58.9]}
4. e3 {[%clk 0:02:59.9]} 4... Bb4 {[%clk 0:02:58.7]} 5. Qc2 {[%clk 0:03:00.5]}
5... d6 {[%clk 0:02:57.7]} 6. Nd5 {[%clk 0:03:00.6]} 6... Ba5 {[%clk 0:02:52]}
7. a3 {[%clk 0:02:59.2]} 7... Nxd5 {[%clk 0:02:52.4]} 8. cxd5 {[%clk 0:03:00.2]}
8... Ne7 {[%clk 0:02:53.9]} 9. b4 {[%clk 0:02:52.5]} 9... Bb6 {[%clk 0:02:52.1]}
10. Bc4 {[%clk 0:02:53.9]} 10... O-O {[%clk 0:02:50.5]} 11. Bb2 {[%clk
0:02:52.5]} 11... Bf5 {[%clk 0:02:37.3]} 12. Bd3 {[%clk 0:02:28.6]} 12... Bxd3
{[%clk 0:01:49.5]} 13. Qxd3 {[%clk 0:02:30.5]} 13... Ng6 {[%clk 0:01:35.1]} 14.
Qf5 {[%clk 0:02:25.4]} 14... h6 {[%clk 0:01:29.6]} 15. d4 {[%clk 0:02:18.3]}
15... Ne7 {[%clk 0:01:29.2]} 16. Qd3 {[%clk 0:02:17.2]} 16... exd4 {[%clk
0:00:25]} 17. Nxd4 {[%clk 0:02:18]} 17... Nxd5 {[%clk 0:00:24.6]} 18. Nf5 {[%clk
0:02:17.8]} 18... Nf6 {[%clk 0:00:20.9]} 19. Qc3 {[%clk 0:02:19.1]} 19... Re8
{[%clk 0:00:19.6]} 20. Nxh6+ {[%clk 0:02:12.8]} 20... gxh6 {[%clk 0:00:21.5]}
21. Qxf6 {[%clk 0:02:14.1]} 21... Qxf6 {[%clk 0:00:23.4]} 22. Bxf6 {[%clk
0:02:15.4]} 22... d5 {[%clk 0:00:25.1]} 23. O-O {[%clk 0:02:13.6]} 23... Re6
{[%clk 0:00:25.3]} 24. Bc3 {[%clk 0:02:12.5]} 24... Rc8 {[%clk 0:00:10.5]} 25.
Rfd1 {[%clk 0:02:12.7]} 25... c6 {[%clk 0:00:11.6]} 26. a4 {[%clk 0:02:14.2]}
26... Bc7 {[%clk 0:00:12.4]} 27. Bd4 {[%clk 0:02:13.9]} 27... a6 {[%clk
0:00:12.9]} 28. b5 {[%clk 0:02:13.5]} 28... axb5 {[%clk 0:00:14]} 29. axb5
{[%clk 0:02:14.9]} 29... Be5 {[%clk 0:00:14.7]} 30. bxc6 {[%clk 0:02:10.4]}
30... bxc6 {[%clk 0:00:15.6]} 31. Rac1 {[%clk 0:02:08.9]} 31... Bxd4 {[%clk
0:00:15.6]} 32. Rxd4 {[%clk 0:02:10.8]} 32... Ra8 {[%clk 0:00:15.7]} 33. Rf4
{[%clk 0:02:08.4]} 33... Ra2 {[%clk 0:00:15.7]} 34. g4 {[%clk 0:02:05]} 34...
Rd2 {[%clk 0:00:11.6]} 35. Rb1 {[%clk 0:02:05.1]} 35... Kg7 {[%clk 0:00:11.7]}
36. Rb6 {[%clk 0:02:05.7]} 36... Rc2 {[%clk 0:00:12.2]} 37. h4 {[%clk
0:01:57.8]} 37... c5 {[%clk 0:00:11.6]} 38. Rxe6 {[%clk 0:01:42.3]} 38... fxe6
{[%clk 0:00:13.5]} 39. g5 {[%clk 0:01:44]} 39... hxg5 {[%clk 0:00:14.4]} 40.
hxg5 {[%clk 0:01:45.9]} 40... Kg6 {[%clk 0:00:11.8]} 41. Rf6+ {[%clk 0:01:47]}
41... Kxg5 {[%clk 0:00:13.4]} 42. Rxe6 {[%clk 0:01:48.6]} 42... Kf5 {[%clk
0:00:15.1]} 43. Re8 {[%clk 0:01:48.9]} 43... Kg4 {[%clk 0:00:14.1]} 44. Kg2
{[%clk 0:01:44.5]} 44... Kf5 {[%clk 0:00:13.8]} 45. Kg3 {[%clk 0:01:41]} 45...
d4 {[%clk 0:00:13.9]} 46. exd4 {[%clk 0:01:23.7]} 46... cxd4 {[%clk 0:00:15.8]}
47. Kf3 {[%clk 0:01:25.2]} 47... d3 {[%clk 0:00:14.7]} 48. Rd8 {[%clk
0:01:20.4]} 48... Rc3 {[%clk 0:00:12.6]} 49. Ke3 {[%clk 0:01:18.6]} 49... Ke6
{[%clk 0:00:11.8]} 50. Rxd3 {[%clk 0:01:13]} 50... Rxd3+ {[%clk 0:00:12.9]} 51.
Kxd3 {[%clk 0:01:14.9]} 51... Kd5 {[%clk 0:00:14.6]} 52. Ke3 {[%clk 0:01:15.9]}
52... Ke5 {[%clk 0:00:15.9]} 53. Kf3 {[%clk 0:01:17.6]} 53... Kf5 {[%clk
0:00:17.2]} 54. Kg3 {[%clk 0:01:19.5]} 54... Kg5 {[%clk 0:00:18.5]} 55. Kf3
{[%clk 0:01:21.1]} 55... Kf5 {[%clk 0:00:19.7]} 56. Ke3 {[%clk 0:01:23]} 56...
Ke5 {[%clk 0:00:21.1]} 57. f3 {[%clk 0:01:24.9]} 57... Kf5 {[%clk 0:00:22.2]}
58. f4 {[%clk 0:01:26.8]} 58... Kf6 {[%clk 0:00:23.5]} 59. Ke4 {[%clk
0:01:28.7]} 59... Ke6 {[%clk 0:00:25]} 60. Kf3 {[%clk 0:01:30.3]} 60... Kf5
{[%clk 0:00:26.4]} 61. Kg3 {[%clk 0:01:31.6]} 61... Kg6 {[%clk 0:00:26.4]} 62.
Kg4 {[%clk 0:01:33.5]} 62... Kf6 {[%clk 0:00:27.9]} 63. f5 {[%clk 0:01:35.4]}
63... Kf7 {[%clk 0:00:29.3]} 64. Kf4 {[%clk 0:01:37.3]} 64... Kf6 {[%clk
0:00:30.7]} 65. Ke4 {[%clk 0:01:38.1]} 65... Kf7 {[%clk 0:00:31.9]} 66. Ke5
{[%clk 0:01:40]} 66... Ke7 {[%clk 0:00:33.2]} 67. f6+ {[%clk 0:01:41.9]} 67...
Kf7 {[%clk 0:00:32.8]} 68. Kf5 {[%clk 0:01:43.8]} 68... Kf8 {[%clk 0:00:34.3]}
69. Kf4 {[%clk 0:01:45.7]} 69... Kf7 {[%clk 0:00:35.4]} 70. Kg5 {[%clk
0:01:47.1]} 70... Kf8 {[%clk 0:00:32.5]} 71. Kg6 {[%clk 0:01:49]} 71... Kg8
{[%clk 0:00:33.7]} 72. f7+ {[%clk 0:01:49.2]} 72... Kf8 {[%clk 0:00:35.1]} 73.
Kh7 {[%clk 0:01:50.7]} 73... Kxf7 {[%clk 0:00:35.3]} 1/2-1/2